Cogmind - Beta 13 @@@ ROGUE MODE // 2024.04.25 @ 16:46:02 Player: NikedNOGsing_in_can't Result: Destroyed by as-16564 with Assembled Rifle Performance ------------- Evolutions (0) 0 Regions Visited (0) 0 Robots Destroyed (6) 30 Value Destroyed (41) 41 Prototype IDs (0) 0 Alien Tech Used (0) 0 Bonus (0) 0 TOTAL SCORE: 71 Bonus ------- None Cogmind --------- Core Integrity 0/250 Matter 289/300 Energy 100/100 System Corruption 5% Temperature Cool (20) Movement Core (100) Ox1 Location -11/Scrapyard Parts ------- > --- POWER (1) -------- (None) > --- PROPULSION (2) --- (None) > --- UTILITY (2) ------ Small Storage Unit > --- WEAPON (2) ------- (None) > --- INVENTORY (8) ---- Light Ion Engine Aluminum Leg Compact Wheel Compact Wheel Improved Terrain Scanner Seismic Detector Peak State ------------ > --- POWER ------------ Ion Engine > --- PROPULSION ------- Light Treads Light Treads > --- UTILITY ---------- Small Storage Unit Improved Terrain Scanner > --- WEAPON ----------- Assault Rifle Assault Rifle > --- INVENTORY -------- Light Ion Engine Aluminum Leg Wheel Compact Wheel Compact Wheel Improved Terrain Scanner Seismic Detector EM Pulse Gun [Rating: 10] Favorites ----------- Power Ion Engine Engine Ion Engine Propulsion Light Treads Treads Light Treads Wheel Compact Wheel Utility Small Storage Unit Device Improved Terrain Scanner Storage Small Storage Unit Weapon Assault Rifle Ballistic Gun Assault Rifle Special Weapon Mining Laser Build | -11 ------- Run | Yrd Slots Evolved . | . Power . | . Propulsion . | . Utility . | . Weapon . | . Parts Attached 14 | 14 Power 1 | 1 Engine 1 | 1 Core . | . Reactor . | . Propulsion 6 | 6 Treads 4 | 4 Leg . | . Wheel 2 | 2 Hover . | . Flight . | . Utility 3 | 3 Device 2 | 2 Storage 1 | 1 Processor . | . Hackware . | . Protection . | . Artifact . | . Weapon 4 | 4 Energy Gun . | . Energy Cannon . | . Ballistic Gun 3 | 3 Ballistic Cannon . | . Launcher . | . Special Weapon 1 | 1 Impact Weapon . | . Slashing Weapon . | . Piercing Weapon . | . Special Melee Weapon . | . Unidentified Prototypes . | . Parts Lost 8 | 8 Power 1 | 1 Propulsion 3 | 3 Utility 1 | 1 Weapon 3 | 3 Highest Loss Streak 8 | 8 To Critical Strikes . | . Average Slot Usage (%) . | . Naked Turns . | . Heaviest Build 15 | 15 Greatest Support 40 | 40 Greatest Overweight (x) 4 | 4 Average Overweight (x) . | . Largest Inventory Capacity 8 | 8 Average Capacity 7 | 7 Most Carried 8 | 8 Average Carried 7 | 7 Final Capacity 8 | 8 Final Carried 6 | 6 Class Distribution -------------------- None Dominant Class ---------------- None Resources | -11 ----------- Run | Yrd Matter Collected 350 | 350 Remotely . | . Salvage Created 155 | 155 Parts 19 | 19 Haulers Intercepted . | . Recyclers Shooed . | . Parts Field Recycled . | . Retrieved Matter . | . Parts Self-Destructed . | . Prevented . | . Kills | -11 ------- Run | Yrd Combat Hostiles Destroyed 2 | 2 Melee 2 | 2 Classes Destroyed 3 | 3 Tunneler 5 | 5 Recycler 1 | 1 Assembled 2 | 2 Best Kill Streak 2 | 2 Combat Bots Only 2 | 2 Max Kills in Single Turn 1 | 1 Gunslinging . | . Exploded . | . Melee 1 | 1 Uniques/NPCs Destroyed . | . Combat | -11 -------- Run | Yrd Hostile Shots Fired 67 | 67 Missed 9 | 9 Damage Taken 1042 | 1042 Core 250 | 250 Absorbed by Shields . | . Core Remaining (%) . | . Volleys Fired 22 | 22 Largest 2 | 2 Hottest 100 | 100 Shots Fired 33 | 33 Gun 25 | 25 Cannon . | . Launcher . | . Special 8 | 8 Kinetic 25 | 25 Thermal 8 | 8 Explosive . | . Electromagnetic . | . Robot Hit Streak 5 | 5 Robot Miss Streak 2 | 2 Penetration Max . | . Secondary Targets . | . Shots Hit Robots 15 | 15 Core Hits 8 | 8 Critical Kills . | . Critical Parts Destroyed . | . Critical Strikes . | . Melee Attacks . | . Impact . | . Slashing . | . Piercing . | . Sneak Attacks . | . Combat Hostiles . | . Follow-up Attacks . | . Damage Inflicted 239 | 239 Guns 233 | 233 Cannons . | . Explosions . | . Melee . | . Ramming 6 | 6 Kinetic 233 | 233 Thermal . | . Explosive . | . Electromagnetic . | . Impact . | . Slashing . | . Piercing . | . Highest Corruption 5 | 5 Average Corruption 5 | 5 Corruption Purged . | . Corruption Blocked . | . Effects 1 | 1 Alerts 1 | 1 Overload Shots . | . Overflow Damage . | . Projectiles . | . Explosions . | . Melee . | . Knockbacks . | . Impact . | . Kinetic . | . Secondary . | . Self-Inflicted Damage . | . Shots . | . Rammed 5 | 5 Targets Rammed 7 | 7 Kicked . | . Crushed 2 | 2 Highest Temperature 159 | 159 Average Temperature 65 | 65 Received Heat Transfer 480 | 480 Siege Activations . | . Robots Corrupted . | . Combat Hostiles . | . Parts Fried . | . Impact Corruptions . | . Robots Melted . | . Combat Hostiles . | . Parts Melted . | . Heat Transferred . | . Parts Sabotaged . | . Parts Stolen . | . Parts Stripped . | . Power Chain Reactions . | . Alert | -11 ------- Run | Yrd Peak Influence 30 | 30 Initial . | . Average 2 | 2 Maximum Alert Level . | . Low Security (%) 100 | 100 Level 1 . | . Level 2 . | . Level 3 . | . Level 4 . | . Level 5 . | . High Security . | . Max Security . | . Squads Dispatched . | . Investigation . | . Extermination . | . Reinforcement . | . Assault . | . Garrison . | . Intercept . | . Searches Triggered . | . Construction Impeded . | . Haulers Reinforced . | . Active Scanning Responses . | . Cargo Convoy Interrupts . | . Stealth | -11 --------- Run | Yrd Distress Signals . | . Communications Jammed . | . Distress Signals . | . Times Spotted 20 | 20 Peak Tracking Total 20 | 20 Tactical Retreats . | . Traps | -11 ------- Run | Yrd Traps Triggered . | . Indirectly . | . Trap Hack Attempts . | . Triggered . | . Disarmed . | . Reprogrammed . | . Reused . | . Traps Extracted . | . Installed . | . Triggered . | . Machines | -11 ---------- Run | Yrd Machines Disabled . | . Max in Single Turn . | . Machines Repaired . | . Machines Dismantled . | . Machines Sabotaged . | . Overloaded Fab Kills . | . Hacking | -11 --------- Run | Yrd Machines Accessed . | . Terminals . | . Fabricators . | . Repair Stations . | . Recycling Units . | . Scanalyzers . | . Garrison Access . | . Total Hacks . | . Successful . | . Failed . | . Catastrophic . | . Database Lockouts . | . Manual . | . Terminals . | . Fabricators . | . Repair Stations . | . Recycling Units . | . Scanalyzers . | . Garrison Access . | . Terminal Hacks . | . Fabricator Hacks . | . Repair Station Hacks . | . Recycling Unit Hacks . | . Scanalyzer . | . Garrison Access Hacks . | . Unauthorized Hacks . | . Terminals . | . Fabricators . | . Repair Stations . | . Recycling Units . | . Scanalyzers . | . Garrison Access . | . Data Cores Recovered . | . Used . | . Hacking Detections . | . Full Trace Events . | . Feedback Events . | . Feedback Blocked . | . Robot Schematics Acquired . | . Robots Built . | . Authchips . | . Time . | . Total Robot Build Rating . | . Part Schematics Acquired . | . Parts Built . | . Authchips . | . Time . | . Total Part Build Rating . | . Parts Repaired . | . Time . | . Parts Recycled . | . Recycled Matter . | . Retrieved Matter . | . Retrieved Components . | . Parts Scanalyzed . | . Part Schematics Acquired . | . Parts Damaged . | . Bothacking | -11 ------------ Run | Yrd Used RIF Installer . | . Robots Hacked . | . Non-combat . | . Combat . | . Robot Hacks Applied . | . Relay Couplers Released . | . Fabnet Peak Effective % . | . Robots Rewired . | . Allies Hacked . | . Hacks Repelled . | . Allies | -11 -------- Run | Yrd Total Allies . | . Largest Group . | . Highest-Rated Group . | . Highest-Rated Ally . | . Total Orders . | . Ally Attacks . | . Total Damage . | . Kills . | . Allies Corrupted . | . Allies Melted . | . Intel | -11 ------- Run | Yrd Robot Analysis Total . | . Derelict Logs Recovered . | . Drone Launches . | . Drone Recoveries . | . Exploration | -11 ------------- Run | Yrd Turns Passed 3512 | 3512 Spaces Moved 819 | 819 Core 109 | 109 Treads 671 | 671 Legs . | . Wheels 39 | 39 Hover . | . Flight . | . Fastest Speed 50 | 50 Average Speed 168 | 168 Slowest Speed 250 | 250 Overloaded Moves . | . Propulsion Burnouts . | . Robots Hopped . | . Cave-ins Triggered 2 | 2 Exploration Rate (%) 59 | 59 Regions Visited . Branch Regions . Pre-discovered Areas . | . Known Exits Taken . | . Unknown Exits Taken . | . Scrap Searched . | . Spaces Dug 5 | 5 Terrain Destroyed 7 | 7 Melee . | . Projectile 7 | 7 AOE . | . Terrain Rammed . | . Walls Destroyed . | . Machines Disabled . | . Actions | -11 --------- Run | Yrd Total 2895 | 2895 Wait 2018 | 2018 Move 819 | 819 Hop . | . Pick Up 12 | 12 Fast Attach 6 | 6 Attach 3 | 3 Detach . | . Swap 5 | 5 Drop 3 | 3 Fire 22 | 22 Melee . | . Ram . | . Kick . | . Crush 7 | 7 Escape Stasis . | . Rewire . | . Trap . | . Miscellaneous . | . Route ------- -11/Scrapyard (discovered 1 exit: [*Mat]) History --------- Turn | Location | Event 29 | -11/Scrapyard | Discovered new exit (range 15) 3481 | -11/Scrapyard | Assembled infested the area 3492 | -11/Scrapyard | Crushed by falling debris 3499 | -11/Scrapyard | Core integrity fell below 50% 3500 | -11/Scrapyard | Crushed by falling debris 3512 | -11/Scrapyard | Core integrity fell below 20% 3513 | -11/Scrapyard | Destroyed by as-16564 with Assembled Rifle Last Messages --------------- 03492_ The unstable cave ceiling collapses. 03492_ Crushed by falling debris. 03494_ Ion Engine destroyed. 03494_ Imp. Terrain Scanner destroyed. 03494_ System corrupted by crushing effect (+1). 03494_ System corrupted by crushing effect (+4). 03496_ Assault Rifle destroyed. 03498_ Crushed as-46606. 03498_ as-46606 destroyed. 03499_ Crushed as-23699. 03499_ as-23699 destroyed. 03500_ The unstable cave ceiling collapses. 03500_ Crushed by falling debris. 03501_ Slammed into as-78962. 03502_ Lgt. Treads destroyed. 03503_ Slammed into as-78962. 03512_ Slammed into as-16564. 03512_ Lgt. Treads destroyed. 03513_ System corrupted: IFF burst signal emitted. Map ----- +----------------------------------------------------+ | | | | | | | | | | | | | | | | | | | | | | | | | | | | | | | | | | | ????????????#????????##????#??#?????#????#?????? | | ???????????????????#??##???####?????#????#?????# | | ?????????????????????#??#??????#??##########??## | | ????????????????#????##???#?????### #???? | | ?????????????????????????#??#????# ##??? | | ?????????????????????##??######### #?#?# | | ?????????????????????#??## "## # % #??#? | | ??????????????????????###aaaa " # #??## | | ??????????????????????# a@a"a # #??#? | | ??????????????????????###aa"a # #??#? | | ????????????#??????#?## ##aaa"a # ##?##? | | ?????????????????????###?# " ### ######????# | | ???????????????#?????????# a aa#### #?########? | | ?????????????????????????###a ###?# # # | | ??????????????????????????######?## # # | | ?????????????????#????##????????#?# # | | ??????????????????#????###??##?#??# # # | | ??????????????????????##????##?#?## # # | | ????????????????????????#??##?????# #?########? | | ?????????????????????##?????????#?# #? #??# | | ????????????????????????#????##???# # #??? | | ??????????????????#???##?????##???# # #?#? | | ???????????????#????#??#???####??## #??? | | ?????????????######??????#?# ##??# # #?#? | | ???????????#?# ##?##????# #?#?# # #??# | | ?????????????# ######### ##### #?######??? | | ?????????#???# # #????#??#?? | | ???????????#?# # ##?#??????? | | ?????????????# # ##### ##??#??????? | | ?#??#????????# # ## ##??#???#?? | | ?????????????# # # #?##?#????? | | ??#??????#???# #?????????? | | ??????????#?## # # ##??????#??? | +----------------------------------------------------+ Best States ------------- Heat Dissipation 25 Energy Generation 10 Energy Capacity 250 Matter Stores 300 Matter Capacity 300 Sight Range 16 Terrain Scan Range 16 Terrain Scan Density 10 Evasion (%) 42 Recoil Reduction 2 Item Schematics ----------------- None Robot Schematics ------------------ None Fabricated ------------ Nothing Alien Tech Used ----------------- None Achievements -------------- Curiosity Killed The Cat Challenges ------------ None Game ------ Seed SwarmTacticalStabilizer Manual? 0 Play Time 00:14:40 Cumulative 55.2 hours Start 2024.04.25 @ 16:38:39 End 2024.04.25 @ 16:46:02 Sessions 0 Manual Loads 0 Difficulty Rogue Special Mode None Game No. 32 Rogue 32 Adventurer 0 Explorer 0 Win Type - Total 0 Types 0/0/0/0/0/0/0/0/0 Lore% 37 Gallery% 44 Achievement% 33 Wizard Run 0 Options --------- Layout 1 ASCII 0 Keyboard 0 Movement Mouse Keybinds 0 Fullscreen 1 Font 24/Smallcaps Map View 50x35 Zoom Use 0% Tactical HUD 1 Map Filters NONE Filters NONE Steam 1 RUN: f392aea7-5106-4998-8774-83021c64ec4f